[Event "*** Titled Tuesday 3|2 Blitz"]
[Site "Chess.com"]
[Date "2015.03.03"]
[Round "1"]
[White "Colombiano07"]
[Black "zmaj23"]
[Result "0-1"]
[WhiteElo "1978"]
[BlackElo "2303"]
[TimeControl "180+2"]
[EndTime "11:01:41 PST"]
[Termination "zmaj23 won by resignation"]

1. e4 {[%clk 0:02:52.3]} 1... c5 {[%clk 0:02:57.9]} 2. Nf3 {[%clk 0:02:53]} 2...
d6 {[%clk 0:02:58.2]} 3. d4 {[%clk 0:02:53.5]} 3... cxd4 {[%clk 0:02:59]} 4.
Nxd4 {[%clk 0:02:55.4]} 4... Nf6 {[%clk 0:02:59.3]} 5. Nc3 {[%clk 0:02:56.5]}
5... a6 {[%clk 0:03:00.4]} 6. Bg5 {[%clk 0:02:57]} 6... e6 {[%clk 0:03:01.1]} 7.
Qf3 {[%clk 0:02:57.8]} 7... Be7 {[%clk 0:02:51.8]} 8. O-O-O {[%clk 0:02:57.4]}
8... Qc7 {[%clk 0:02:46]} 9. Qg3 {[%clk 0:02:57.5]} 9... Nbd7 {[%clk 0:02:43.8]}
10. Kb1 {[%clk 0:02:53.6]} 10... b5 {[%clk 0:02:43.3]} 11. Bxb5 {[%clk
0:02:54.1]} 11... axb5 {[%clk 0:02:41]} 12. Ndxb5 {[%clk 0:02:56]} 12... Qa5
{[%clk 0:02:38]} 13. Nxd6+ {[%clk 0:02:56.5]} 13... Bxd6 {[%clk 0:02:38.2]} 14.
Qxd6 {[%clk 0:02:58.4]} 14... Qxg5 {[%clk 0:02:31.9]} 0-1

[Event "*** Titled Tuesday 3|2 Blitz"]
[Site "Chess.com"]
[Date "2015.03.03"]
[Round "1"]
[White "Konavets"]
[Black "BjarkeSahl"]
[Result "1-0"]
[WhiteElo "2365"]
[BlackElo "2058"]
[TimeControl "180+2"]
[EndTime "11:04:00 PST"]
[Termination "Konavets won by resignation"]

1. b3 {[%clk 0:02:58.2]} 1... d5 {[%clk 0:02:56.4]} 2. Bb2 {[%clk 0:03:00.1]}
2... c5 {[%clk 0:02:57.9]} 3. Nf3 {[%clk 0:02:57.2]} 3... Nc6 {[%clk 0:02:59.4]}
4. e3 {[%clk 0:02:58.3]} 4... Qc7 {[%clk 0:03:00.8]} 5. Bb5 {[%clk 0:02:58.9]}
5... a6 {[%clk 0:03:02.3]} 6. Bxc6+ {[%clk 0:02:59.8]} 6... Qxc6 {[%clk
0:03:03.9]} 7. d3 {[%clk 0:03:01]} 7... f6 {[%clk 0:03:02.5]} 8. Nbd2 {[%clk
0:03:02.2]} 8... e5 {[%clk 0:03:03.4]} 9. c4 {[%clk 0:03:03.9]} 9... Be6 {[%clk
0:03:03]} 10. O-O {[%clk 0:02:55.2]} 10... Rd8 {[%clk 0:03:01.6]} 11. Rc1 {[%clk
0:02:56.2]} 11... Nh6 {[%clk 0:03:01.7]} 12. Qe2 {[%clk 0:02:54.7]} 12... Be7
{[%clk 0:03:01.6]} 13. cxd5 {[%clk 0:02:50.8]} 13... Qxd5 {[%clk 0:03:01.5]} 14.
Ne4 {[%clk 0:02:50.1]} 14... b6 {[%clk 0:02:56.8]} 15. Rfd1 {[%clk 0:02:50.5]}
15... O-O {[%clk 0:02:56.7]} 16. Nc3 {[%clk 0:02:50.3]} 16... Qb7 {[%clk
0:02:55.1]} 17. d4 {[%clk 0:02:51.5]} 17... Bg4 {[%clk 0:02:41.1]} 18. dxe5
{[%clk 0:02:43.2]} 18... fxe5 {[%clk 0:02:41.8]} 19. Qc4+ {[%clk 0:02:43.4]}
19... Kh8 {[%clk 0:02:43.3]} 20. Rxd8 {[%clk 0:02:43.2]} 20... Rxd8 {[%clk
0:02:33.7]} 21. Nxe5 {[%clk 0:02:43.5]} 21... Bh5 {[%clk 0:02:35.2]} 22. Ne4
{[%clk 0:02:42.1]} 22... b5 {[%clk 0:02:31.4]} 23. Nxc5 {[%clk 0:02:37.5]} 23...
Qa7 {[%clk 0:02:07.3]} 24. Qf4 {[%clk 0:02:22.8]} 24... Bf6 {[%clk 0:01:55]} 25.
Nc6 {[%clk 0:02:21.2]} 25... Qxc5 {[%clk 0:01:51.1]} 26. Nxd8 {[%clk 0:02:20.9]}
26... Qd5 {[%clk 0:01:49.7]} 27. Bxf6 {[%clk 0:02:20.4]} 1-0

[Event "*** Titled Tuesday 3|2 Blitz"]
[Site "Chess.com"]
[Date "2015.03.03"]
[Round "1"]
[White "michaelk123"]
[Black "biostatistician"]
[Result "0-1"]
[WhiteElo "1900"]
[BlackElo "2291"]
[TimeControl "180+2"]
[EndTime "11:04:12 PST"]
[Termination "biostatistician won by resignation"]

1. e4 {[%clk 0:02:58.9]} 1... e6 {[%clk 0:02:56.6]} 2. d4 {[%clk 0:02:57]} 2...
d5 {[%clk 0:02:58]} 3. Nd2 {[%clk 0:02:58]} 3... Nc6 {[%clk 0:02:58.3]} 4. Ngf3
{[%clk 0:02:57.4]} 4... Nf6 {[%clk 0:02:59.4]} 5. e5 {[%clk 0:02:56.3]} 5... Ne4
{[%clk 0:03:00.9]} 6. Bd3 {[%clk 0:02:55]} 6... Nxd2 {[%clk 0:03:00.9]} 7. Bxd2
{[%clk 0:02:54.9]} 7... Nb4 {[%clk 0:03:02.1]} 8. Bxb4 {[%clk 0:02:49.2]} 8...
Bxb4+ {[%clk 0:03:04]} 9. c3 {[%clk 0:02:51]} 9... Be7 {[%clk 0:03:05.4]} 10.
O-O {[%clk 0:02:48.1]} 10... c5 {[%clk 0:03:05.6]} 11. Re1 {[%clk 0:02:45.2]}
11... Bd7 {[%clk 0:03:04.9]} 12. g3 {[%clk 0:02:43.1]} 12... Qb6 {[%clk
0:03:04.7]} 13. Qe2 {[%clk 0:02:39.2]} 13... Rc8 {[%clk 0:03:01]} 14. b3 {[%clk
0:02:28]} 14... cxd4 {[%clk 0:02:54.8]} 15. cxd4 {[%clk 0:02:28.7]} 15... Ba3
{[%clk 0:02:55.4]} 16. Rad1 {[%clk 0:02:06.1]} 16... a6 {[%clk 0:02:53.3]} 17.
h4 {[%clk 0:02:04.7]} 17... Bb5 {[%clk 0:02:54]} 18. Bxb5+ {[%clk 0:02:00]}
18... Qxb5 {[%clk 0:02:55.9]} 19. Qe3 {[%clk 0:01:57]} 19... h6 {[%clk
0:02:51.6]} 20. Kg2 {[%clk 0:01:45.5]} 20... Qb4 {[%clk 0:02:47.1]} 21. Re2
{[%clk 0:01:44.7]} 21... Rc3 {[%clk 0:02:45.8]} 22. Rd3 {[%clk 0:01:45.3]} 22...
Rc6 {[%clk 0:02:46.5]} 23. Rdd2 {[%clk 0:01:44.5]} 23... Bc1 {[%clk 0:02:43.9]}
24. Qd3 {[%clk 0:01:34.2]} 24... Bxd2 {[%clk 0:02:43]} 25. Nxd2 {[%clk
0:01:31.1]} 25... Qc3 {[%clk 0:02:40.6]} 26. Re3 {[%clk 0:01:29.2]} 26... Qxd3
{[%clk 0:02:41.4]} 27. Rxd3 {[%clk 0:01:31.1]} 27... Ke7 {[%clk 0:02:42.7]} 28.
g4 {[%clk 0:01:30.1]} 28... Rhc8 {[%clk 0:02:41.9]} 29. Kf3 {[%clk 0:01:29.2]}
29... Rc3 {[%clk 0:02:42.6]} 30. Ke3 {[%clk 0:01:30.9]} 30... Rxd3+ {[%clk
0:02:43.3]} 31. Kxd3 {[%clk 0:01:32.8]} 31... Rc1 {[%clk 0:02:44.6]} 0-1

[Event "*** Titled Tuesday 3|2 Blitz"]
[Site "Chess.com"]
[Date "2015.03.03"]
[Round "1"]
[White "ViennaRocket"]
[Black "jcibarra"]
[Result "0-1"]
[WhiteElo "2192"]
[BlackElo "2543"]
[TimeControl "180+2"]
[EndTime "11:04:50 PST"]
[Termination "jcibarra won by resignation"]

1. d4 {[%clk 0:02:57.1]} 1... Nf6 {[%clk 0:02:58.6]} 2. c4 {[%clk 0:02:58.6]}
2... d6 {[%clk 0:03:00]} 3. Nc3 {[%clk 0:03:00]} 3... e5 {[%clk 0:03:01]} 4. Nf3
{[%clk 0:02:57.5]} 4... e4 {[%clk 0:03:01.7]} 5. Ng5 {[%clk 0:02:58.2]} 5... Qe7
{[%clk 0:03:02.9]} 6. Qc2 {[%clk 0:02:56.7]} 6... Bf5 {[%clk 0:03:03.8]} 7. g4
{[%clk 0:02:57.8]} 7... Bg6 {[%clk 0:03:04.5]} 8. Bg2 {[%clk 0:02:58.6]} 8...
Nc6 {[%clk 0:03:05.7]} 9. e3 {[%clk 0:02:57.3]} 9... O-O-O {[%clk 0:03:04.7]}
10. Ngxe4 {[%clk 0:02:57]} 10... d5 {[%clk 0:03:05.2]} 11. cxd5 {[%clk
0:02:56.7]} 11... Nb4 {[%clk 0:03:06.1]} 12. Qb1 {[%clk 0:02:52.1]} 12... Nbxd5
{[%clk 0:03:06.6]} 13. Nxd5 {[%clk 0:02:47.5]} 13... Rxd5 {[%clk 0:03:06.8]} 14.
Nxf6 {[%clk 0:02:48.2]} 14... Rxd4 {[%clk 0:03:07.4]} 15. Nd5 {[%clk 0:02:19.6]}
15... Qe6 {[%clk 0:02:35.2]} 16. O-O {[%clk 0:02:07]} 16... Rxg4 {[%clk
0:02:29.7]} 17. Nf4 {[%clk 0:01:52]} 17... Rxf4 {[%clk 0:02:24.1]} 18. exf4
{[%clk 0:01:52.1]} 18... Bxb1 {[%clk 0:02:24.2]} 19. Rxb1 {[%clk 0:01:54]} 19...
Bc5 {[%clk 0:02:22.6]} 20. Bd2 {[%clk 0:01:50]} 20... Rd8 {[%clk 0:02:20.1]} 21.
Bc3 {[%clk 0:01:51]} 21... Bd4 {[%clk 0:02:21.6]} 22. Rfe1 {[%clk 0:01:49.6]}
22... Qf6 {[%clk 0:02:12.2]} 23. Rbd1 {[%clk 0:01:48.7]} 23... Bxc3 {[%clk
0:02:08.3]} 24. Bh3+ {[%clk 0:01:49.8]} 24... Kb8 {[%clk 0:02:09.2]} 25. Rxd8+
{[%clk 0:01:50]} 25... Qxd8 {[%clk 0:02:09.4]} 26. bxc3 {[%clk 0:01:51.6]} 26...
a6 {[%clk 0:02:07.8]} 27. Bg2 {[%clk 0:01:51.3]} 27... Ka7 {[%clk 0:02:01.9]}
28. Rb1 {[%clk 0:01:50.4]} 28... c6 {[%clk 0:02:01.9]} 29. Bf3 {[%clk
0:01:48.5]} 29... Qd3 {[%clk 0:02:01.2]} 30. Kg2 {[%clk 0:01:48.1]} 30... Qxb1
{[%clk 0:02:01.6]} 0-1

[Event "*** Titled Tuesday 3|2 Blitz"]
[Site "Chess.com"]
[Date "2015.03.03"]
[Round "1"]
[White "manitodeplomo"]
[Black "Mugzyyy"]
[Result "0-1"]
[WhiteElo "2292"]
[BlackElo "2272"]
[TimeControl "180+2"]
[EndTime "11:05:02 PST"]
[Termination "Mugzyyy won by resignation"]

1. d4 {[%clk 0:02:50.7]} 1... e6 {[%clk 0:02:58]} 2. c4 {[%clk 0:02:50.4]} 2...
Bb4+ {[%clk 0:02:58.9]} 3. Nd2 {[%clk 0:02:50.1]} 3... c5 {[%clk 0:02:58.2]} 4.
a3 {[%clk 0:02:45.6]} 4... Bxd2+ {[%clk 0:02:59]} 5. Qxd2 {[%clk 0:02:47.5]}
5... cxd4 {[%clk 0:03:00.5]} 6. Qxd4 {[%clk 0:02:48.8]} 6... Nf6 {[%clk
0:03:02.2]} 7. Nf3 {[%clk 0:02:47.9]} 7... Nc6 {[%clk 0:03:03.6]} 8. Qf4 {[%clk
0:02:47.7]} 8... d6 {[%clk 0:03:02.6]} 9. e3 {[%clk 0:02:41.9]} 9... O-O {[%clk
0:03:02.1]} 10. Be2 {[%clk 0:02:41.8]} 10... e5 {[%clk 0:02:51.3]} 11. Qh4
{[%clk 0:02:42.2]} 11... Be6 {[%clk 0:02:51.7]} 12. O-O {[%clk 0:02:37.7]} 12...
Rc8 {[%clk 0:02:52.5]} 13. Rd1 {[%clk 0:02:35.5]} 13... Qc7 {[%clk 0:02:49.9]}
14. b4 {[%clk 0:02:32.6]} 14... Ne7 {[%clk 0:02:50.8]} 15. Nd2 {[%clk
0:02:13.2]} 15... Nf5 {[%clk 0:02:48.6]} 16. Qh3 {[%clk 0:01:07.2]} 16... Nd4
{[%clk 0:02:47.9]} 17. exd4 {[%clk 0:01:01.4]} 17... Bxh3 {[%clk 0:02:48.5]} 18.
gxh3 {[%clk 0:01:03.3]} 18... exd4 {[%clk 0:02:49.9]} 19. Bb2 {[%clk 0:01:02.7]}
19... Rfe8 {[%clk 0:02:49.8]} 20. Bf1 {[%clk 0:01:03.1]} 20... d5 {[%clk
0:02:41.1]} 21. c5 {[%clk 0:00:59.2]} 21... Qf4 {[%clk 0:02:40.1]} 22. Nb3
{[%clk 0:00:57.1]} 22... Ne4 {[%clk 0:02:37.3]} 23. Bxd4 {[%clk 0:00:57.8]}
23... Ng5 {[%clk 0:02:38.5]} 24. Bg2 {[%clk 0:00:54.8]} 24... Nf3+ {[%clk
0:02:39.7]} 25. Bxf3 {[%clk 0:00:55.2]} 25... Qxf3 {[%clk 0:02:41]} 26. Be3
{[%clk 0:00:53.6]} 26... Rc6 {[%clk 0:02:37.4]} 0-1

[Event "*** Titled Tuesday 3|2 Blitz"]
[Site "Chess.com"]
[Date "2015.03.03"]
[Round "1"]
[White "Fandorine"]
[Black "asms9699"]
[Result "1-0"]
[WhiteElo "2535"]
[BlackElo "2183"]
[TimeControl "180+2"]
[EndTime "11:05:10 PST"]
[Termination "Fandorine won by resignation"]

1. e4 {[%clk 0:02:55.8]} 1... e6 {[%clk 0:02:54.9]} 2. d3 {[%clk 0:02:56.2]}
2... d5 {[%clk 0:02:54.8]} 3. Nd2 {[%clk 0:02:57.8]} 3... g6 {[%clk 0:02:55.6]}
4. Ngf3 {[%clk 0:02:59.4]} 4... Bg7 {[%clk 0:02:57]} 5. Be2 {[%clk 0:03:00.8]}
5... Ne7 {[%clk 0:02:56.9]} 6. O-O {[%clk 0:03:02.5]} 6... O-O {[%clk
0:02:58.2]} 7. Re1 {[%clk 0:03:03.6]} 7... c5 {[%clk 0:02:59.3]} 8. Bf1 {[%clk
0:03:05.3]} 8... Nbc6 {[%clk 0:03:00.4]} 9. c3 {[%clk 0:03:06.7]} 9... b5 {[%clk
0:02:58.9]} 10. exd5 {[%clk 0:03:00.1]} 10... exd5 {[%clk 0:02:49.8]} 11. Nb3
{[%clk 0:03:01.2]} 11... c4 {[%clk 0:02:46.7]} 12. Nc5 {[%clk 0:03:02.1]} 12...
Qd6 {[%clk 0:02:38.6]} 13. d4 {[%clk 0:03:03]} 13... b4 {[%clk 0:02:28.8]} 14.
g3 {[%clk 0:03:03.8]} 14... Bf5 {[%clk 0:02:26]} 15. Bf4 {[%clk 0:02:59.1]}
15... Qd8 {[%clk 0:02:24.8]} 16. Qa4 {[%clk 0:03:00.3]} 16... Qb6 {[%clk
0:02:16.1]} 17. Bg2 {[%clk 0:02:56.5]} 17... Rfe8 {[%clk 0:02:09.4]} 18. Ne5
{[%clk 0:02:49.2]} 18... Nxe5 {[%clk 0:01:50.4]} 19. Bxe5 {[%clk 0:02:50]} 19...
Bxe5 {[%clk 0:01:47.5]} 20. Rxe5 {[%clk 0:02:51.9]} 20... bxc3 {[%clk
0:01:47.2]} 21. bxc3 {[%clk 0:02:53]} 21... Qb2 {[%clk 0:01:35.7]} 22. Rae1
{[%clk 0:02:27]} 22... Qxc3 {[%clk 0:01:35.9]} 23. Bxd5 {[%clk 0:02:09.1]} 23...
Rab8 {[%clk 0:01:15]} 24. Qxc4 {[%clk 0:02:04.9]} 24... Qd2 {[%clk 0:01:02.5]}
25. Bxf7+ {[%clk 0:02:01.3]} 25... Kh8 {[%clk 0:01:03.5]} 26. Bxe8 {[%clk
0:01:58.4]} 26... Rb2 {[%clk 0:01:03]} 27. R5e2 {[%clk 0:01:57.5]} 1-0

[Event "*** Titled Tuesday 3|2 Blitz"]
[Site "Chess.com"]
[Date "2015.03.03"]
[Round "1"]
[White "Tirantes"]
[Black "DanielRensch"]
[Result "1-0"]
[WhiteElo "2272"]
[BlackElo "2284"]
[TimeControl "180+2"]
[EndTime "11:05:19 PST"]
[Termination "Tirantes won by resignation"]

1. c4 {[%clk 0:02:56.6]} 1... e5 {[%clk 0:02:42.2]} 2. Nc3 {[%clk 0:02:55]} 2...
Nf6 {[%clk 0:02:43]} 3. Nf3 {[%clk 0:02:50.4]} 3... Nc6 {[%clk 0:02:41]} 4. g3
{[%clk 0:02:48]} 4... d5 {[%clk 0:02:21.8]} 5. cxd5 {[%clk 0:02:47.6]} 5... Nxd5
{[%clk 0:02:23.7]} 6. Bg2 {[%clk 0:02:48.3]} 6... Nb6 {[%clk 0:02:24.6]} 7. O-O
{[%clk 0:02:48]} 7... Be7 {[%clk 0:02:25.2]} 8. d3 {[%clk 0:02:48.7]} 8... O-O
{[%clk 0:02:25.6]} 9. a3 {[%clk 0:02:49.1]} 9... Re8 {[%clk 0:02:25.7]} 10. b4
{[%clk 0:02:47.1]} 10... Bf8 {[%clk 0:02:26.8]} 11. Bb2 {[%clk 0:02:43.5]} 11...
h6 {[%clk 0:02:23.2]} 12. Rc1 {[%clk 0:02:41.8]} 12... a5 {[%clk 0:02:16.9]} 13.
b5 {[%clk 0:02:39.8]} 13... Nd4 {[%clk 0:02:17.6]} 14. Nd2 {[%clk 0:02:38]}
14... a4 {[%clk 0:02:15.6]} 15. e3 {[%clk 0:02:37.5]} 15... Ne6 {[%clk
0:02:16.5]} 16. Qc2 {[%clk 0:02:35.9]} 16... Nc5 {[%clk 0:02:17]} 17. d4 {[%clk
0:02:21.4]} 17... exd4 {[%clk 0:02:10.3]} 18. exd4 {[%clk 0:02:21.1]} 18... Ne6
{[%clk 0:01:39.6]} 19. d5 {[%clk 0:02:20.4]} 19... Nd4 {[%clk 0:01:33.7]} 20.
Qd3 {[%clk 0:02:11.3]} 20... Bc5 {[%clk 0:01:34.2]} 21. Nce4 {[%clk 0:02:06.1]}
1-0

[Event "*** Titled Tuesday 3|2 Blitz"]
[Site "Chess.com"]
[Date "2015.03.03"]
[Round "1"]
[White "MITerryble"]
[Black "jup1978"]
[Result "1-0"]
[WhiteElo "2490"]
[BlackElo "2141"]
[TimeControl "180+2"]
[EndTime "11:05:48 PST"]
[Termination "MITerryble won by resignation"]

1. d4 {[%clk 0:02:57.3]} 1... d5 {[%clk 0:02:58.7]} 2. Nf3 {[%clk 0:02:58.6]}
2... Nf6 {[%clk 0:02:58.8]} 3. c4 {[%clk 0:02:59.7]} 3... c6 {[%clk 0:03:00.4]}
4. Nc3 {[%clk 0:03:00.8]} 4... a6 {[%clk 0:03:01.4]} 5. c5 {[%clk 0:02:59.5]}
5... Nbd7 {[%clk 0:03:00.7]} 6. Bf4 {[%clk 0:02:59.6]} 6... Nh5 {[%clk
0:03:01.6]} 7. e3 {[%clk 0:02:53.2]} 7... Nxf4 {[%clk 0:02:59.6]} 8. exf4 {[%clk
0:02:55.1]} 8... g6 {[%clk 0:03:01.1]} 9. Bd3 {[%clk 0:02:55.8]} 9... Bg7 {[%clk
0:03:02.2]} 10. Qd2 {[%clk 0:02:57.1]} 10... O-O {[%clk 0:03:02.3]} 11. O-O
{[%clk 0:02:57.9]} 11... b6 {[%clk 0:03:01.7]} 12. b4 {[%clk 0:02:58.3]} 12...
a5 {[%clk 0:02:56.7]} 13. a3 {[%clk 0:02:59.1]} 13... Ba6 {[%clk 0:02:57.4]} 14.
Rfc1 {[%clk 0:02:53.7]} 14... Bxd3 {[%clk 0:02:50.9]} 15. Qxd3 {[%clk
0:02:54.8]} 15... Qc7 {[%clk 0:02:50.3]} 16. g3 {[%clk 0:02:47.9]} 16... axb4
{[%clk 0:02:50.3]} 17. axb4 {[%clk 0:02:48.4]} 17... Rxa1 {[%clk 0:02:52]} 18.
Rxa1 {[%clk 0:02:48.7]} 18... bxc5 {[%clk 0:02:53.9]} 19. bxc5 {[%clk
0:02:49.8]} 19... f6 {[%clk 0:02:45.7]} 20. f5 {[%clk 0:02:47.5]} 20... gxf5
{[%clk 0:02:44.2]} 21. Qxf5 {[%clk 0:02:49.4]} 21... Re8 {[%clk 0:02:37.6]} 22.
Qe6+ {[%clk 0:02:46.5]} 22... Kh8 {[%clk 0:02:37.2]} 23. Ra6 {[%clk 0:02:39.8]}
23... Rc8 {[%clk 0:02:26]} 24. Qxe7 {[%clk 0:02:34.6]} 24... Qb7 {[%clk
0:02:27.3]} 25. Rb6 {[%clk 0:02:30]} 25... Qc7 {[%clk 0:02:28]} 26. Rb1 {[%clk
0:02:27]} 26... Nf8 {[%clk 0:02:19.6]} 27. Qxc7 {[%clk 0:02:26]} 27... Rxc7
{[%clk 0:02:21.5]} 28. Nh4 {[%clk 0:02:22.1]} 28... Kg8 {[%clk 0:02:14.2]} 29.
Rb8 {[%clk 0:02:13.1]} 29... Kf7 {[%clk 0:02:13.5]} 30. Nf5 {[%clk 0:02:14.3]}
30... Ne6 {[%clk 0:02:14.4]} 31. Na2 {[%clk 0:02:10.7]} 31... Kg6 {[%clk
0:02:15.2]} 32. g4 {[%clk 0:02:11.8]} 32... h5 {[%clk 0:02:13.9]} 33. h3 {[%clk
0:02:12.7]} 33... hxg4 {[%clk 0:02:15]} 34. hxg4 {[%clk 0:02:14.6]} 34... Kg5
{[%clk 0:02:16]} 35. f3 {[%clk 0:02:15.8]} 35... Kf4 {[%clk 0:02:10.5]} 36. Kf2
{[%clk 0:02:15.5]} 36... Ra7 {[%clk 0:02:10.2]} 37. Nc3 {[%clk 0:02:16.6]} 37...
Ra3 {[%clk 0:02:03.6]} 38. Ne2+ {[%clk 0:02:12.8]} 38... Kg5 {[%clk 0:02:01.6]}
39. Re8 {[%clk 0:02:12.5]} 39... Nf4 {[%clk 0:01:57.2]} 40. Nxg7 {[%clk
0:02:12.3]} 40... Nd3+ {[%clk 0:01:52]} 41. Kg3 {[%clk 0:02:11]} 41... Ra2
{[%clk 0:01:50.3]} 42. Nf5 {[%clk 0:02:02.9]} 42... Kg6 {[%clk 0:01:48.1]} 43.
Re7 {[%clk 0:02:03.2]} 1-0

[Event "*** Titled Tuesday 3|2 Blitz"]
[Site "Chess.com"]
[Date "2015.03.03"]
[Round "1"]
[White "Danirod"]
[Black "kharposh"]
[Result "0-1"]
[WhiteElo "2325"]
[BlackElo "2058"]
[TimeControl "180+2"]
[EndTime "11:05:55 PST"]
[Termination "kharposh won by resignation"]

1. e4 {[%clk 0:02:59.7]} 1... c6 {[%clk 0:02:57.9]} 2. Nc3 {[%clk 0:03:00.2]}
2... d5 {[%clk 0:02:59.3]} 3. Nf3 {[%clk 0:03:01.2]} 3... dxe4 {[%clk
0:02:59.6]} 4. Nxe4 {[%clk 0:03:01.9]} 4... Bf5 {[%clk 0:03:01.1]} 5. Qe2 {[%clk
0:02:59.5]} 5... Nf6 {[%clk 0:02:52.8]} 6. d3 {[%clk 0:02:59.9]} 6... e6 {[%clk
0:02:47]} 7. Bd2 {[%clk 0:02:57.5]} 7... Nbd7 {[%clk 0:02:38.1]} 8. O-O-O {[%clk
0:02:56.6]} 8... Be7 {[%clk 0:02:32.6]} 9. h3 {[%clk 0:02:56.9]} 9... Qc7 {[%clk
0:02:28.7]} 10. Kb1 {[%clk 0:02:29.9]} 10... h6 {[%clk 0:02:15.5]} 11. g4 {[%clk
0:02:28.6]} 11... Bh7 {[%clk 0:02:12.1]} 12. g5 {[%clk 0:02:30]} 12... hxg5
{[%clk 0:02:05.9]} 13. Nexg5 {[%clk 0:02:31.2]} 13... Bf5 {[%clk 0:02:03.3]} 14.
h4 {[%clk 0:02:20.4]} 14... Nd5 {[%clk 0:01:59.6]} 15. Nd4 {[%clk 0:02:16.1]}
15... g6 {[%clk 0:01:43]} 16. Nxf5 {[%clk 0:02:09.7]} 16... gxf5 {[%clk
0:01:42.3]} 17. Qf3 {[%clk 0:02:04.5]} 17... Ne5 {[%clk 0:01:29.7]} 18. Qg3
{[%clk 0:02:01.7]} 18... Ng4 {[%clk 0:01:11.7]} 19. f4 {[%clk 0:01:51.4]} 19...
Bxg5 {[%clk 0:01:05.6]} 20. Bg2 {[%clk 0:01:45]} 20... Bxf4 {[%clk 0:01:03.6]}
21. Bxf4 {[%clk 0:01:42.7]} 21... Qxf4 {[%clk 0:01:04.2]} 22. Qe1 {[%clk
0:01:43.3]} 22... Nde3 {[%clk 0:01:03.2]} 23. Rd2 {[%clk 0:01:43.4]} 23... Nxg2
{[%clk 0:01:01.9]} 24. Rxg2 {[%clk 0:01:45.1]} 24... O-O-O {[%clk 0:01:01.2]}
25. Rf1 {[%clk 0:01:42.9]} 25... Qh6 {[%clk 0:01:00.6]} 26. Qb4 {[%clk
0:01:40.6]} 26... Ne3 {[%clk 0:00:57]} 27. Rfg1 {[%clk 0:01:37.8]} 27... Nxg2
{[%clk 0:00:57.3]} 28. Rxg2 {[%clk 0:01:39.7]} 28... Qxh4 {[%clk 0:00:58]} 0-1

[Event "*** Titled Tuesday 3|2 Blitz"]
[Site "Chess.com"]
[Date "2015.03.03"]
[Round "1"]
[White "IMRosen"]
[Black "SuPeR_Fm"]
[Result "1-0"]
[WhiteElo "2089"]
[BlackElo "2377"]
[TimeControl "180+2"]
[EndTime "11:06:09 PST"]
[Termination "IMRosen won by resignation"]

1. c4 {[%clk 0:02:58.7]} 1... Nf6 {[%clk 0:02:54.3]} 2. Nc3 {[%clk 0:03:00.2]}
2... d6 {[%clk 0:02:55.7]} 3. e4 {[%clk 0:03:01.3]} 3... e5 {[%clk 0:02:57.6]}
4. Nge2 {[%clk 0:02:59.9]} 4... Be7 {[%clk 0:02:59.5]} 5. d4 {[%clk 0:03:01.1]}
5... exd4 {[%clk 0:03:00.7]} 6. Nxd4 {[%clk 0:03:03]} 6... O-O {[%clk
0:03:02.6]} 7. Be2 {[%clk 0:03:04.3]} 7... Re8 {[%clk 0:03:03.4]} 8. O-O {[%clk
0:03:05.8]} 8... Bf8 {[%clk 0:03:04.4]} 9. f3 {[%clk 0:03:02.1]} 9... c6 {[%clk
0:03:02.6]} 10. Bg5 {[%clk 0:02:56]} 10... Nbd7 {[%clk 0:03:00.7]} 11. Kh1
{[%clk 0:02:53.8]} 11... a5 {[%clk 0:03:00.4]} 12. b3 {[%clk 0:02:52.4]} 12...
h6 {[%clk 0:02:59]} 13. Bh4 {[%clk 0:02:53.1]} 13... Ne5 {[%clk 0:02:57.5]} 14.
Qd2 {[%clk 0:02:50.5]} 14... Ng6 {[%clk 0:02:57.7]} 15. Bg3 {[%clk 0:02:50.9]}
15... d5 {[%clk 0:02:59]} 16. cxd5 {[%clk 0:02:34.1]} 16... cxd5 {[%clk
0:03:00.9]} 17. Bb5 {[%clk 0:02:31.4]} 17... Bb4 {[%clk 0:02:20.9]} 18. Bxe8
{[%clk 0:02:26.1]} 18... Qxe8 {[%clk 0:02:22.8]} 19. a3 {[%clk 0:02:17.1]} 19...
Bxc3 {[%clk 0:02:22]} 20. Qxc3 {[%clk 0:02:19]} 20... dxe4 {[%clk 0:02:23.9]}
21. Rae1 {[%clk 0:02:20.4]} 21... a4 {[%clk 0:02:13.1]} 22. b4 {[%clk
0:02:19.2]} 22... Bd7 {[%clk 0:02:00]} 23. fxe4 {[%clk 0:01:59.4]} 23... Nxe4
{[%clk 0:01:59.9]} 24. Qf3 {[%clk 0:02:00]} 24... Nxg3+ {[%clk 0:01:51.8]} 25.
Qxg3 {[%clk 0:02:01.9]} 25... Qd8 {[%clk 0:01:40.3]} 26. Nf5 {[%clk 0:01:48.5]}
26... Be6 {[%clk 0:01:32.5]} 27. Nxh6+ {[%clk 0:01:33.4]} 27... gxh6 {[%clk
0:01:31.1]} 28. Rxe6 {[%clk 0:01:35.1]} 28... fxe6 {[%clk 0:01:30.5]} 29. Qxg6+
{[%clk 0:01:35.5]} 29... Kh8 {[%clk 0:01:31.8]} 30. Qxh6+ {[%clk 0:01:36]} 30...
Kg8 {[%clk 0:01:31.6]} 31. Qxe6+ {[%clk 0:01:37.6]} 31... Kh8 {[%clk 0:01:29.8]}
32. Qe5+ {[%clk 0:01:28.5]} 1-0

[Event "*** Titled Tuesday 3|2 Blitz"]
[Site "Chess.com"]
[Date "2015.03.03"]
[Round "1"]
[White "Mvpag"]
[Black "stepanosinovsky"]
[Result "0-1"]
[WhiteElo "1864"]
[BlackElo "2282"]
[TimeControl "180+2"]
[EndTime "11:06:27 PST"]
[Termination "stepanosinovsky won by resignation"]

1. d4 {[%clk 0:02:56.2]} 1... d6 {[%clk 0:02:55.3]} 2. c4 {[%clk 0:02:55.4]}
2... Nf6 {[%clk 0:02:49.3]} 3. Nf3 {[%clk 0:02:55.9]} 3... g6 {[%clk 0:02:49.1]}
4. Nc3 {[%clk 0:02:54.9]} 4... Bg7 {[%clk 0:02:51]} 5. e4 {[%clk 0:02:55.5]}
5... O-O {[%clk 0:02:52.9]} 6. Be2 {[%clk 0:02:56.8]} 6... Nbd7 {[%clk
0:02:54.2]} 7. O-O {[%clk 0:02:57.5]} 7... e5 {[%clk 0:02:56.1]} 8. d5 {[%clk
0:02:50.2]} 8... Nc5 {[%clk 0:02:56.7]} 9. Qc2 {[%clk 0:02:49.6]} 9... a5 {[%clk
0:02:57.7]} 10. a3 {[%clk 0:02:46.3]} 10... a4 {[%clk 0:02:58.1]} 11. Be3 {[%clk
0:02:44]} 11... Nb3 {[%clk 0:02:43.3]} 12. Rad1 {[%clk 0:02:37.2]} 12... Bd7
{[%clk 0:02:44.4]} 13. Nd2 {[%clk 0:02:32.5]} 13... Nxd2 {[%clk 0:02:23.4]} 14.
Qxd2 {[%clk 0:02:23.5]} 14... Ng4 {[%clk 0:02:22.4]} 15. Bxg4 {[%clk 0:02:18.9]}
15... Bxg4 {[%clk 0:02:22.4]} 16. h3 {[%clk 0:02:13]} 16... Bxd1 {[%clk
0:02:22.1]} 17. Nxd1 {[%clk 0:02:09.4]} 17... f5 {[%clk 0:02:21.8]} 18. Bg5
{[%clk 0:02:08.4]} 18... Bf6 {[%clk 0:02:21.7]} 19. Bh6 {[%clk 0:02:09.2]} 19...
Bg7 {[%clk 0:02:16.8]} 20. Bg5 {[%clk 0:02:09.5]} 20... Qd7 {[%clk 0:02:15.6]}
21. exf5 {[%clk 0:01:52.4]} 21... gxf5 {[%clk 0:02:09.3]} 22. Nc3 {[%clk
0:01:33.5]} 22... Qf7 {[%clk 0:01:59]} 23. Nb5 {[%clk 0:01:21.3]} 23... f4
{[%clk 0:01:29.1]} 24. Qe2 {[%clk 0:00:53.4]} 24... Qg6 {[%clk 0:01:19.5]} 25.
Bh4 {[%clk 0:00:34.8]} 25... f3 {[%clk 0:01:16.9]} 0-1